[Event "FRA-ch Women 2018"]
[Site "Nimes"]
[Date "2018.08.26"]
[Round "9"]
[White "Safranska, Anda"]
[Black "Navrotescu, Andreea-Cristiana"]
[Result "0-1"]
[ECO "A06"]
[WhiteElo "2193"]
[BlackElo "2247"]
[Annotator "NA"]
[PlyCount "139"]
[EventDate "2018.08.18"]
[EventType "tourn"]
[EventCountry "FRA"]
[SourceTitle "playchess.com"]
[Source "ChessBase"]
[SourceQuality "1"]
[TimeControl "40/5400+30:1800+30"]

1. Nf3 {[%emt 0:00:00]} d5 {[%emt 0:00:41]} 2. g3 {[%emt 0:00:00]} g6 {[%emt 0:00:04]} 3. Bg2 {[%emt 0:00:00]} Bg7 {[%emt 0:00:07]} 4. d3 {[%emt 0:03:04]} e5 {[%emt 0:00:27]} 5. c4 {[%emt 0:01:29]} dxc4 {[%emt 0:04:06]} 6. Qa4+ {[%emt 0:00:46]} Nc6 {[%emt 0:00:27]} 7. Qxc4 {[%emt 0:00:08]} Nge7 {[%emt 0:01:56]} 8. O-O {[%emt 0:00:44]} O-O {[%emt 0:00:44]} 9. Nc3 {[%emt 0:02:15]} Nd4 {[%emt 0:05:50] A07: Réti Opening: New York and Capablanca Systems} 10. Nxd4 {[%emt 0:08:59] LiveBook: 4 Games} exd4 {[%emt 0:00:16]} 11. Ne4 {[%emt 0:00:28]} h6 {[%emt 0:00:47]} (11... Be6 $5 {[%cal Re6c4]} 12. Qc2 b6 $11) 12. Nc5 $146 {[%emt 0:01:12]} ({Predecessor:} 12. Bf4 c6 13. Qc1 g5 14. Bd2 Nd5 15. h4 f5 16. hxg5 fxe4 17. dxe4 {1-0 (45) Malakhov,V (2694)-Matlakov,M (2689) Dubai 2014}) 12... c6 $1 {[%emt 0:02:58]} 13. e4 {[%emt 0:03:39]} b6 {[%emt 0:01:59]} (13... dxe3 $5 14. Bxe3 b6 $15) 14. Nb3 {[%emt 0:00:25]} Be6 {[%emt 0:04:56]} 15. Qc2 {[%emt 0:01:06]} c5 {[%emt 0:05:45]} 16. Nd2 {[%emt 0:00:33]} Rc8 {[%emt 0:03:05]} 17. b3 {[%emt 0:15:26]} f5 {[%emt 0:02:35]} 18. exf5 {[%emt 0:00:57]} Nxf5 {[%emt 0:02:21]} 19. Bb2 {[%emt 0:00:56]} Qd7 {[%emt 0:03:49]} 20. Rae1 {[%emt 0:00:24]} Nd6 {[%emt 0:02:39]} 21. Nc4 {[%emt 0:03:33]} Nf7 {[%emt 0:00:34]} 22. a4 {[%emt 0:01:17]} Rce8 {[%emt 0:04:45]} 23. f4 {[%emt 0:08:27]} Bf5 {[%emt 0:02:13]} 24. Ba3 Re6 {[%emt 0:02:03]} 25. b4 {[%emt 0:05:36]} cxb4 {[%emt 0:01:56]} 26. Bxb4 {[%emt 0:00:06]} Rfe8 {[%emt 0:00:05]} 27. Rxe6 {[%emt 0:02:58]} Bxe6 {[%emt 0:02:18]} 28. Qd1 {[%emt 0:01:37]} b5 {[%emt 0:03:59]} 29. Na5 {[%emt 0:13:07]} Rc8 {[%emt 0:00:54]} 30. axb5 {[%emt 0:02:44]} Qxb5 {[%emt 0:00:11]} 31. Be1 {[%emt 0:07:15]} Nd6 {[%emt 0:02:22]} 32. g4 {[%emt 0:00:36]} Kh8 {[%emt 0:10:32]} 33. h3 {[%emt 0:00:19]} Qb2 {[%emt 0:09:16]} 34. Qf3 {[%emt 0:00:51]} Rc2 {[%emt 0:02:37]} 35. Bf2 {[%emt 0:00:59]} Rc5 {[%emt 0:01:10]} 36. Qa8+ {[%emt 0:00:59]} Nc8 {[%emt 0:03:12]} (36... Bc8 $16) 37. Nc6 {[%emt 0:00:45]} Kh7 {[%emt 0:01:28]} 38. Nd8 {[%emt 0:03:19]} Bd7 {[%emt 0:01:45]} 39. Qb7 {[%emt 0:08:05]} Qxb7 {[%emt 0:02:06]} 40. Nxb7 {[%emt 0:00:09]} Rc3 {[%emt 0:00:07]} 41. Be4 {[%emt 0:34:13]} Bc6 {[%emt 0:32:34]} 42. Bxc6 {[%emt 0:00:00]} Rxc6 {[%emt 0:00:00]} 43. Rd1 {[%emt 0:00:00]} Nb6 {[%emt 0:00:00]} 44. Na5 {[%emt 0:00:00]} Rc3 {[%emt 0:00:00]} 45. Be1 {[%emt 0:00:00]} Ra3 {[%emt 0:00:00]} 46. Kf2 {[%emt 0:00:00]} Nd5 {[%emt 0:00:00]} 47. Nc4 {[%emt 0:00:00]} Ra2+ {[%emt 0:00:00]} 48. Kf3 {[%emt 0:00:00]} Nc3 {[%emt 0:00:00]} 49. Rd2 {[%emt 0:00:00]} Ra1 {[%emt 0:00:00]} 50. Bf2 {[%emt 0:00:00]} a5 {[%emt 0:00:00]} 51. Rb2 {[%emt 0:00:00]} Rd1 {[%emt 0:00:00]} 52. Nxa5 {[%emt 0:00:00]} Rxd3+ {[%emt 0:00:00]} 53. Kg2 {[%emt 0:00:00]} Nd1 $2 {[%emt 0:00:00]} (53... Nd5 $19 54. Kh2 Rf3) 54. Ra2 {[%emt 0:00:00]} Rc3 {[%emt 0:00:00]} 55. Be1 {[%emt 0:00:00]} Re3 {[%emt 0:00:00]} 56. Bb4 {[%emt 0:00:07]} Nc3 {[%emt 0:00:00]} 57. Rd2 {[%emt 0:03:14]} Nd5 {[%emt 0:00:00]} 58. Bd6 {[%emt 0:00:05]} Rc3 {[%emt 0:00:00]} 59. h4 {[%emt 0:01:09]} Ne3+ {[%emt 0:00:00]} 60. Kf2 {[%emt 0:00:17]} Nxg4+ {[%emt 0:00:00]} 61. Kg2 {[%emt 0:00:06]} Bf6 {[%emt 0:00:00]} 62. h5 {[%emt 0:01:25]} gxh5 {[%emt 0:00:00]} 63. Bb4 {[%emt 0:00:12]} Rc8 {[%emt 0:01:14]} 64. Kf3 {[%emt 0:00:17]} Kg6 {[%emt 0:00:38]} 65. Rd3 {[%emt 0:02:03]} Rc1 {[%emt 0:00:22]} 66. Nb3 {[%emt 0:01:17]} Rf1+ {[%emt 0:00:09]} 67. Kg3 {[%emt 0:00:57]} Kf5 $19 {[%emt 0:00:11]} 68. Bd2 {[%emt 0:02:08]} Rf2 {[%emt 0:01:28]} 69. Be1 {[%emt 0:00:49]} h4+ {[%emt 0:00:11]} 70. Kh3 {[%emt 0:00:09] Ke5} 0-1

[Event "FRA-ch Women 2018"]
[Site "Nimes"]
[Date "2018.08.26"]
[Round "9"]
[White "Monpeurt, Cyrielle"]
[Black "Afraoui, Anaelle"]
[Result "1/2-1/2"]
[ECO "B33"]
[WhiteElo "2175"]
[BlackElo "2041"]
[Annotator "NA"]
[PlyCount "105"]
[EventDate "2018.08.18"]
[EventType "tourn"]
[EventCountry "FRA"]
[SourceTitle "playchess.com"]
[Source "ChessBase"]
[SourceQuality "1"]
[TimeControl "40/5400+30:1800+30"]

1. e4 {[%emt 0:00:00]} c5 {[%emt 0:00:00]} 2. Nf3 {[%emt 0:00:00]} Nc6 {[%emt 0:00:00]} 3. d4 {[%emt 0:00:02]} cxd4 {[%emt 0:00:00]} 4. Nxd4 {[%emt 0:00:07]} Nf6 {[%emt 0:00:02]} 5. Nc3 {[%emt 0:00:17]} e5 {[%emt 0:00:08]} 6. Ndb5 {[%emt 0:00:11]} d6 {[%emt 0:00:09]} 7. Bg5 {[%emt 0:00:17]} a6 {[%emt 0:00:08]} 8. Na3 {[%emt 0:00:09]} b5 {[%emt 0:00:08]} 9. Nd5 {[%emt 0:00:15]} Be7 {[%emt 0:00:09]} 10. Bxf6 {[%emt 0:00:10]} Bxf6 {[%emt 0:00:08]} 11. c4 {[%emt 0:00:07]} b4 {[%emt 0:00:21] B33: Sizilianisch (Lasker/Pelikan/Sweschnikow-Variante)} 12. Nc2 {[%emt 0:00:08]} Bg5 {[%emt 0:02:12]} 13. g3 {[%emt 0:05:31]} a5 {[%emt 0:03:26]} 14. h4 {[%emt 0:00:29]} Bh6 {[%emt 0:01:39]} 15. Bh3 {[%emt 0:00:16] [#]} a4 $146 {[%emt 0:06:15]} ({Vorgänger:} 15... Bb7 16. Qh5 Ne7 17. Nf6+ Kf8 18. Rd1 Ng6 19. Nd5 Ne7 20. Nf6 Ng6 {½-½ (49) Saric,I (2662)-Ivanchuk,V (2727) Mali Losinj 2017}) 16. Ncxb4 {[%emt 0:16:27]} Nxb4 {[%emt 0:04:56]} 17. Nxb4 {[%emt 0:01:59]} Bxh3 {[%emt 0:00:57]} 18. Rxh3 {[%emt 0:00:04]} a3 {[%emt 0:00:34]} 19. bxa3 {[%emt 0:04:48]} Rxa3 {[%emt 0:10:44]} 20. Rh1 {[%emt 0:06:27]} Qa8 {[%emt 0:07:30]} 21. Qd5 {[%emt 0:08:59]} O-O {[%emt 0:04:40]} 22. Kf1 {[%emt 0:07:01]} Qb8 {[%emt 0:09:43]} 23. Rb1 {[%emt 0:14:38]} Rxa2 {[%emt 0:12:25]} 24. Qb5 {[%emt 0:05:28]} Rd2 {[%emt 0:02:25]} 25. Nd5 {[%emt 0:01:12]} Qa7 {[%emt 0:01:37]} 26. Qb6 {[%emt 0:01:44]} Qa2 {[%emt 0:03:59]} 27. Kg2 {[%emt 0:00:08]} Qxc4 {[%emt 0:01:13]} 28. Rhe1 {[%emt 0:03:47]} Qc5 {[%emt 0:16:55]} 29. Qxc5 {[%emt 0:06:51]} dxc5 {[%emt 0:00:09]} 30. Rbc1 {[%emt 0:07:01]} Rxd5 {[%emt 0:02:26]} 31. exd5 {[%emt 0:00:05]} Bxc1 {[%emt 0:00:07]} 32. Rxc1 {[%emt 0:00:04]} Rc8 {[%emt 0:00:44]} 33. d6 {[%emt 0:00:07]} f6 {[%emt 0:00:38]} 34. d7 {[%emt 0:00:24]} Rd8 $1 {[%emt 0:00:05]} 35. Rxc5 {[%emt 0:00:13]} Rxd7 {[%emt 0:00:25]} 36. Rc4 {[%emt 0:02:50]} Kf7 {[%emt 0:05:37]} 37. Ra4 {[%emt 0:00:15]} Ke6 {[%emt 0:01:20]} 38. Ra6+ {[%emt 0:00:38]} Kf5 {[%emt 0:02:02]} 39. Ra4 {[%emt 0:01:12]} Rb7 {[%emt 0:01:58]} 40. Rc4 {[%emt 0:00:33]} Ra7 {[%emt 0:00:27]} 41. Rb4 {[%emt 0:30:18]} h5 {[%emt 0:05:44]} 42. Rb8 {[%emt 0:00:00]} Ra2 {[%emt 0:02:18]} 43. Rb5 {[%emt 0:00:00]} Ra4 {[%emt 0:07:43]} 44. Rb7 {[%emt 0:00:00]} g6 {[%emt 0:01:03]} 45. Rb8 {[%emt 0:00:00]} Ra5 {[%emt 0:01:37]} 46. Rb7 $17 {[%emt 0:00:00]} e4 {[%emt 0:01:04]} 47. Rb4 {[%emt 0:00:00]} g5 {[%emt 0:06:44]} 48. hxg5 {[%emt 0:00:00]} fxg5 {[%emt 0:00:15]} 49. Rb8 {[%emt 0:00:00]} Re5 {[%emt 0:02:17]} 50. Kh3 {[%emt 0:00:00]} Re6 {[%emt 0:03:07]} 51. Rh8 {[%emt 0:00:00]} Kg6 {[%emt 0:00:47]} 52. Rg8+ {[%emt 0:00:00]} Kh6 {[%emt 0:02:13]} 53. Rh8+ {[%emt 0:00:00]} 1/2-1/2